bitfinex/quotes_ETHUSD_20250115
["timestamp","ask_amount","ask_price","bid_price","bid_amount"]
[1736914414748,3.0909,3235.3,3235.1,0.185]
[1736914414894,3.0909,3235.3,3234.9,0.8303]
[1736914415094,3.0909,3235.3,3235.2,0.185]
[1736914415341,3.39999,3235.3,3235.2,0.185]
[1736914415840,0.30909,3235.3,3235.2,0.185]
[1736914416138,3.39999,3235.3,3235.2,0.185]
[1736914416326,3.09109,3235.1,3234.6,0.8303]
[1736914416669,3.510188,3235.1,3234.9,0.185]
[1736914418419,1.09989,3235.3,3234.9,0.185]
[1736914418585,4.19079,3235.3,3234.9,0.185]
[1736914419130,3.09074,3235.5,3234.9,0.185]
[1736914419301,3.09074,3235.5,3235.1,0.8303]
[1736914419631,3.09074,3235.5,3235.2,0.185]
[1736914420121,3.09082,3235.4,3235.2,0.185]
[1736914420321,3.399982,3235.3,3235.2,0.185]
[1736914420678,3.399982,3235.3,3235.0,0.3512301]
[1736914420679,3.09102,3235.2,3235.0,0.3512301]
[1736914421286,3.88189,3235.1,3235.0,0.1662301]
[1736914421725,3.88189,3235.1,3235.0,1e-08]
[1736914421923,3.09165,3234.6,3234.1,0.185]
[1736914422125,3.09165,3234.6,3234.2,0.185]
[1736914422286,3.09165,3234.6,3234.0,0.8303]
[1736914422494,0.7908,3234.5,3234.0,1.0153]
[1736914422688,3.09186,3234.3,3234.0,1.0153]
[1736914423186,3.72012743,3234.5,3234.0,1.0153]
[1736914423911,0.37201274,3234.4,3234.0,1.0153]
[1736914424108,3.09203,3234.2,3234.0,0.8303]
[1736914424338,3.09203,3234.2,3233.7,0.185]
[1736914425414,3.09206,3234.1,3233.7,0.185]
[1736914426362,3.09206,3234.1,3233.8,0.185]
[1736914426864,3.09224,3233.9,3233.4,0.8303]
[1736914427178,0.309224,3233.8,3233.6,0.185]
[1736914427472,3.09241,3233.8,3233.6,0.185]
[1736914427820,3.09202,3234.2,3233.6,0.185]
[1736914427821,3.09243,3233.7,3233.6,0.185]
[1736914429162,3.8089,3234.2,3233.6,0.185]
[1736914429325,0.62373758,3233.9,3233.6,0.185]
[1736914429933,3.09235,3233.8,3233.6,0.185]
[1736914430343,3.8089,3234.2,3233.6,0.185]
[1736914430344,3.7052207,3234.0,3233.6,0.185]
[1736914430548,3.09224,3233.9,3233.6,0.185]
[1736914431161,3.09178,3234.4,3233.7,0.8328]
[1736914431320,0.309178,3234.3,3233.7,0.8328]
[1736914431525,3.09189,3234.3,3233.7,0.8328]
[1736914432075,3.09189,3234.3,3233.8,0.185]
[1736914433060,3.69739856,3234.3,3233.8,0.185]
[1736914433263,3.69739856,3234.3,3233.7,0.8328]
[1736914433449,3.69739856,3234.3,3233.9,0.185]
[1736914434472,0.60550856,3234.3,3233.9,0.185]
[1736914434776,3.09196,3234.2,3233.9,0.185]
[1736914436046,0.60550856,3234.3,3233.9,0.185]
[1736914436261,3.69798016,3234.4,3233.9,0.185]
[1736914437735,0.60619016,3234.4,3233.9,0.185]
[1736914438252,0.8089,3234.1,3233.3,0.8328]
[1736914438468,3.09228,3233.9,3233.4,0.185]
[1736914440564,3.09195,3234.2,3233.4,0.185]
[1736914440767,3.09225,3233.9,3233.4,0.185]
[1736914442553,3.09234,3233.8,3233.4,0.185]
[1736914443979,0.390085,3234.1,3233.4,0.185]
[1736914444182,3.09242,3233.8,3233.4,0.185]
[1736914445683,3.71406958,3233.8,3233.4,0.185]
[1736914446005,3.09291,3233.2,3233.0,0.9859]
[1736914446218,3.88271,3233.2,3232.3,0.83183061]
[1736914446502,3.88271,3233.2,3232.5,0.185]
[1736914447040,3.09291,3233.2,3232.8,0.8009]
[1736914449414,3.09291,3233.2,3232.7,0.185]
[1736914451412,3.6975528,3233.2,3232.7,0.185]
[1736914452239,4.06730808,3233.2,3232.7,0.185]
[1736914455565,7.06730808,3233.2,3232.7,0.185]
[1736914455768,7.06730808,3233.2,3232.6,0.8009]
[1736914455974,7.06730808,3233.2,3232.7,0.185]
[1736914456332,7.85710808,3233.2,3232.3,0.8009]
[1736914456534,8.40710808,3233.2,3232.3,0.8009]
[1736914456749,8.7992023,3233.2,3232.3,0.8009]
[1736914459269,7.85710808,3233.2,3232.3,0.8009]
[1736914460374,4.06730808,3233.2,3232.8,0.7984]
[1736914460586,3.6975528,3233.2,3232.8,0.7984]
[1736914460798,3.6975528,3233.2,3232.8,0.9834]
[1736914461287,3.09291,3233.2,3232.8,0.9834]
[1736914461586,0.37140696,3233.8,3232.8,0.185]
[1736914461948,0.62100558,3233.8,3233.2,0.7984]
[1736914462138,3.09217,3234.0,3233.2,0.7984]
[1736914462692,3.09224,3233.9,3233.2,0.7984]
[1736914462887,0.60519839,3234.1,3233.2,0.7984]
[1736914463130,3.69727839,3234.1,3233.4,0.7534]
[1736914463329,3.69727839,3234.1,3233.6,0.7534]
[1736914463635,0.8253,3234.5,3233.7,0.185]
[1736914463807,0.62522083,3234.2,3233.7,0.185]
[1736914464632,3.09165,3234.6,3233.8,0.7534]
[1736914464818,0.62515884,3234.3,3233.8,0.7534]
[1736914465412,3.09167,3234.5,3233.8,0.7534]
[1736914465652,0.60501242,3234.4,3233.8,0.7534]
[1736914467153,3.09144,3234.8,3233.8,0.78432027]
[1736914467324,9.81622693,3235.1,3233.8,0.78432027]
[1736914467537,0.68162269,3235.0,3233.9,0.7534]
[1736914467863,3.0,3234.8,3234.1,0.7534]
[1736914468753,3.09177,3234.4,3234.2,0.185]
[1736914470013,3.09177,3234.4,3234.1,0.7534]
[1736914470353,3.09185,3234.3,3234.2,0.185]
[1736914470564,3.401035,3234.3,3234.2,0.185]
[1736914471626,4.01757201,3234.3,3234.2,0.185]
[1736914472237,4.01757201,3234.3,3233.8,0.7534]
[1736914472438,3.09215,3234.0,3233.7,0.185]
[1736914473291,3.09198,3234.2,3233.8,0.7806]
[1736914473582,3.4845522,3234.2,3233.8,0.7806]
[1736914475781,3.09216,3234.0,3233.8,0.7806]
[1736914475991,3.09223,3234.0,3233.8,0.185]
[1736914478955,3.09224,3233.9,3233.8,0.185]
[1736914479154,3.401464,3233.9,3233.8,0.185]
[1736914480447,3.09241,3233.8,3233.6,0.185]
[1736914482466,3.09243,3233.7,3233.5,0.185]
[1736914487620,3.401544,3233.9,3233.5,0.185]
[1736914487769,0.61023902,3233.7,3233.5,0.185]
[1736914488524,3.09235,3233.8,3233.5,0.185]
[1736914489817,3.09218,3234.0,3233.5,0.185]
[1736914490015,0.34847522,3234.0,3233.5,0.185]
[1736914490223,3.09226,3233.9,3233.5,0.185]
[1736914490681,3.71527329,3233.8,3233.5,0.185]
[1736914490886,3.09245,3233.7,3233.5,0.185]
[1736914492802,0.62294329,3233.8,3233.5,0.185]
[1736914493529,3.71530329,3233.8,3233.5,0.185]
[1736914493886,1.02932114,3233.8,3233.5,0.185]
[1736914494086,0.62294329,3233.8,3233.5,0.185]
[1736914495625,3.09252,3233.6,3233.5,0.185]
[1736914496442,3.71528329,3233.8,3233.5,0.185]
[1736914500906,0.62294329,3233.8,3233.5,0.185]
[1736914501108,0.825,3234.3,3233.6,0.7651]
[1736914501435,3.87209,3234.7,3233.6,0.7651]
[1736914501436,3.09184,3234.4,3233.6,0.7651]
[1736914501604,3.478204,3234.4,3233.6,0.7651]
[1736914502014,1.28164688,3234.8,3233.5,0.185]
[1736914502015,2.05344688,3234.8,3233.8,3.09233]
[1736914502244,0.4798554,3234.8,3234.0,0.7651]
[1736914502451,0.4798554,3234.8,3234.2,0.7502]
[1736914502945,3.86292,3235.1,3234.2,0.7502]
[1736914503158,0.63284314,3234.9,3234.2,0.7502]
[1736914503356,3.09188,3234.3,3234.0,0.185]
[1736914504828,0.8177,3234.7,3234.1,0.7502]
[1736914505034,3.0915,3234.7,3234.1,0.7502]
[1736914505434,0.37240531,3234.8,3234.1,0.7502]
[1736914505435,6.0913,3234.9,3234.1,0.7502]
[1736914505668,0.8177,3235.0,3234.1,0.7502]
[1736914505888,3.09169,3234.5,3234.1,0.7502]
[1736914506024,3.09186,3234.3,3234.1,0.185]
[1736914507667,3.69898537,3234.3,3234.1,0.185]
[1736914511277,3.69898537,3234.3,3233.7,0.185]
[1736914511278,0.60712537,3234.3,3233.7,0.185]
[1736914511463,3.60712537,3234.3,3233.7,0.185]
[1736914511775,3.09212,3234.1,3233.7,0.185]
[1736914512084,3.09212,3234.1,3233.5,0.7502]
[1736914512288,0.70080944,3234.2,3233.6,0.185]
[1736914512895,3.09205,3234.1,3233.6,0.185]
[1736914513569,3.09205,3234.1,3233.7,0.185]
[1736914513876,0.37928594,3234.0,3233.7,0.185]
[1736914514284,0.70080944,3234.2,3233.7,0.185]
[1736914514542,0.60712537,3234.3,3233.8,0.7502]
[1736914514698,0.6054541,3234.7,3234.0,0.7502]
[1736914515106,0.8177,3234.6,3233.8,0.7502]
[1736914515456,3.09178,3234.4,3233.8,0.7502]
[1736914515771,0.6054541,3234.7,3233.8,0.7502]
[1736914516383,3.09188,3234.3,3233.8,0.7502]
[1736914516899,0.390958,3234.3,3233.8,0.7502]
[1736914517080,3.09214,3234.0,3233.7,0.185]
[1736914517292,3.09214,3234.0,3233.6,0.185]
[1736914517799,3.60693372,3234.2,3233.6,0.185]
[1736914517968,3.09243,3233.7,3233.4,0.185]
[1736914518859,3.09243,3233.7,3233.2,0.8188]
[1736914519074,3.09243,3233.7,3233.3,0.185]
[1736914521715,3.09243,3233.7,3233.2,0.8188]
[1736914521877,3.09243,3233.7,3233.3,0.185]
[1736914523304,0.6098071,3233.6,3233.3,0.185]
[1736914524905,0.6098071,3233.6,3233.2,0.8188]
[1736914524906,3.09267,3233.5,3233.2,0.8188]
[1736914525221,3.09267,3233.5,3233.2,1.0038]
[1736914525812,0.6098071,3233.6,3233.2,1.0038]
[1736914526184,3.7023371,3233.6,3233.2,1.0038]
[1736914526386,3.09262,3233.5,3233.2,0.8188]
[1736914526699,3.46286271,3233.5,3233.1,0.19]
[1736914526897,0.37024271,3233.5,3233.1,0.19]
[1736914527082,0.6098071,3233.6,3233.1,0.19]
[1736914527282,3.09277,3233.4,3233.1,0.19]
[1736914527532,3.09277,3233.4,3233.1,0.005]
[1736914527831,3.09281,3233.3,3233.1,0.005]
[1736914529612,3.09291,3233.2,3233.1,0.005]
[1736914529811,3.484171,3233.2,3233.1,0.005]
[1736914530531,7.303871,3233.2,3233.1,0.005]
[1736914530713,7.853871,3233.2,3233.1,0.005]
[1736914533352,8.19395361,3233.2,3233.1,1e-05]
[1736914533645,8.24596522,3233.2,3233.1,1e-05]
[1736914536421,7.853871,3233.2,3233.1,1e-05]
[1736914540322,11.14580215,3233.2,3233.1,1e-05]
[1736914540526,8.24596522,3233.2,3233.1,1e-05]
[1736914542015,8.27699106,3233.2,3233.1,1e-05]
[1736914546367,3.51519684,3233.2,3233.1,1e-05]
[1736914546734,7.06519684,3233.2,3233.1,1e-05]
[1736914548863,8.28629106,3233.2,3233.1,1e-05]
[1736914556668,7.89419684,3233.2,3233.1,1e-05]
[1736914557492,11.18612799,3233.2,3233.1,1e-05]
[1736914557669,8.28629106,3233.2,3233.1,1e-05]
[1736914558265,11.18612799,3233.2,3233.1,1e-05]
[1736914558477,8.28629106,3233.2,3233.1,1e-05]
[1736914559410,8.28629106,3233.2,3231.8,0.1662301]
[1736914559411,3.09414,3232.0,3231.8,0.1662301]
[1736914559618,3.09405,3232.0,3231.9,0.8209]
[1736914561397,0.63411261,3232.1,3231.9,0.8209]
[1736914562291,3.09405,3232.0,3231.9,0.8209]
[1736914563419,3.09415,3231.9,3231.8,0.1662301]
[1736914563630,6.09415,3231.9,3231.8,0.1662301]
[1736914564383,6.09415,3231.9,3231.8,0.9850301]
[1736914564882,3.09415,3231.9,3231.8,0.9850301]
[1736914565721,3.09415,3231.9,3231.8,0.1662301]
[1736914565722,3.46697626,3231.9,3231.8,0.1662301]
[1736914566521,6.46697626,3231.9,3231.8,0.1662301]
[1736914567726,7.01697626,3231.9,3231.8,0.1662301]
[1736914568606,7.83037626,3231.9,3231.8,0.1662301]
[1736914568792,8.56255309,3231.9,3231.8,0.1662301]
[1736914569120,8.22247048,3231.9,3231.8,0.1662301]
[1736914570511,7.83037626,3231.9,3231.8,0.1662301]
[1736914572856,8.22247048,3231.9,3231.8,1e-07]
[1736914573261,7.83037626,3231.9,3231.8,1e-07]
[1736914573615,0.55,3231.2,3230.2,0.8188]
[1736914573817,3.09521,3230.8,3230.2,0.8188]
[1736914574046,3.71323693,3231.3,3230.2,0.8188]
[1736914574221,3.09534,3230.7,3230.2,0.8188]
[1736914576265,0.62036416,3230.9,3230.2,0.8188]
[1736914576449,3.09397,3232.1,3230.2,0.8188]
[1736914576450,0.40390876,3231.9,3230.4,0.8188]
[1736914576661,0.62495348,3231.1,3230.6,0.8188]
[1736914577118,3.09504,3231.0,3230.6,0.8188]
[1736914577349,3.09512,3230.9,3230.6,0.8188]
[1736914577550,0.62495348,3231.1,3230.6,0.8188]
[1736914578404,0.97743252,3231.1,3230.6,0.8188]
[1736914578893,3.0953,3230.7,3230.6,0.8188]
[1736914579262,3.09549,3230.5,3230.4,0.7582]
[1736914579585,0.8194,3230.6,3229.5,0.7582]
[1736914579785,3.09593,3230.1,3229.5,0.7582]
[1736914581780,3.64549,3230.5,3229.5,0.7582]
[1736914581988,3.09598,3230.0,3229.5,0.9432]
[1736914583064,3.7020999,3230.2,3229.5,0.9432]
[1736914583299,0.6062899,3230.2,3229.5,0.7582]
[1736914583500,3.09635,3229.6,3229.5,0.7582]
[1736914583814,3.09658,3229.4,3228.9,0.8036]
[1736914584010,0.55,3229.6,3228.9,0.8036]
[1736914584308,3.09632,3229.7,3228.9,0.8036]
[1736914584505,3.09663,3229.4,3228.9,0.8036]
[1736914584931,3.09676,3229.2,3228.9,0.8036]
[1736914587496,0.6120632,3229.3,3228.9,0.8036]
[1736914588318,3.7087032,3229.3,3228.9,0.8036]
[1736914588815,0.59961569,3229.7,3228.9,0.8036]
[1736914589172,3.89614,3230.0,3228.9,0.8036]
[1736914589372,3.09607,3229.9,3228.9,0.8036]
[1736914589572,3.09642,3229.6,3228.9,0.8036]
[1736914590023,3.72372242,3229.5,3228.9,0.8036]
[1736914590415,3.09658,3229.4,3228.9,0.8036]
[1736914590608,0.37238424,3229.3,3228.9,0.8036]
[1736914590830,3.09664,3229.3,3228.9,0.8036]
[1736914592023,3.09684,3229.1,3228.9,0.9886]
[1736914592834,3.09684,3229.1,3228.6,0.1662301]
[1736914592990,3.09722,3228.7,3228.6,0.1662301]
[1736914593185,3.406942,3228.7,3228.6,0.1662301]
[1736914594428,6.406942,3228.7,3228.6,0.1662301]
[1736914594937,3.406942,3228.7,3228.6,0.1662301]
[1736914595267,3.09722,3228.7,3228.6,0.1662301]
[1736914597146,3.89732,3228.7,3228.6,0.1662301]
[1736914598142,3.09722,3228.7,3228.6,0.1662301]
[1736914600363,0.8001,3229.7,3228.7,0.8036]
[1736914600538,3.09684,3229.1,3228.6,0.1662301]
[1736914601552,3.406524,3229.1,3228.6,0.1662301]
[1736914602648,0.8001,3229.0,3228.6,0.1662301]
[1736914602828,3.0972,3228.8,3228.6,0.1662301]
[1736914603431,3.09722,3228.7,3228.6,0.1662301]
[1736914605465,6.89732,3228.7,3228.6,0.1662301]
[1736914605752,7.64853421,3228.7,3228.6,0.1662301]
[1736914606556,6.84843421,3228.7,3228.6,0.1662301]
[1736914611668,7.63693421,3228.7,3228.6,0.1662301]
[1736914611835,8.18693421,3228.7,3228.6,0.1662301]
[1736914612035,8.59986176,3228.7,3228.6,0.1662301]
[1736914613122,8.59986176,3228.7,3228.6,1e-07]
[1736914619289,8.18693421,3228.7,3228.6,1e-07]
[1736914620493,3.84843421,3228.7,3228.6,1e-07]
[1736914620640,3.09722,3228.7,3228.6,1e-07]
[1736914620984,3.09699,3229.0,3228.6,1e-07]
[1736914620985,3.09693,3229.0,3228.6,1e-07]
[1736914621301,0.63243241,3229.2,3228.7,0.8103]
[1736914622552,3.09667,3229.3,3228.7,0.8103]
[1736914623303,0.62814873,3229.7,3228.8,0.7867708]
[1736914623508,3.09583,3230.2,3229.0,0.7558]
[1736914623657,0.60921362,3230.0,3229.0,0.7558]
[1736914623858,3.70518362,3230.0,3229.0,0.7558]
[1736914624861,3.70518362,3230.0,3229.0,0.78676321]
[1736914625259,3.0955,3230.5,3229.4,0.7558]
[1736914625489,3.40505,3230.5,3229.6,0.7558]
[1736914625678,3.70950563,3230.3,3229.6,0.7558]
[1736914625863,3.09602,3230.0,3229.6,0.7558]
[1736914627503,3.09587,3230.1,3229.6,0.7558]
[1736914627766,3.09621,3229.8,3229.6,0.7558]
[1736914628267,3.09626,3229.7,3229.6,0.7558]
[1736914630260,3.50942393,3230.0,3228.8,0.7558]
[1736914630446,3.09625,3229.8,3229.3,0.185]
[1736914630648,3.09625,3229.8,3229.4,0.7558]
[1736914630850,3.4668337,3229.8,3229.4,0.7558]
[1736914631232,0.62475374,3229.7,3229.4,0.7558]
[1736914632439,3.09636,3229.6,3229.3,0.185]
[1736914632685,3.72103374,3229.7,3229.3,0.185]
[1736914639465,3.72103374,3229.7,3229.1,0.7558]
[1736914639666,0.37210337,3229.6,3229.2,0.185]
[1736914640112,0.37210337,3229.6,3229.1,0.7558]
[1736914640295,3.09675,3229.2,3228.8,0.9643]
[1736914640497,3.09702,3228.9,3228.8,0.7793]
[1736914640650,3.09702,3228.9,3228.7,0.015]
[1736914640998,3.7976,3229.6,3228.7,0.015]
[1736914641197,3.09712,3228.8,3228.7,0.015]
[1736914643985,6.09712,3228.8,3228.7,0.015]
[1736914644706,3.09722,3228.7,3228.6,1e-07]
[1736914644881,6.09722,3228.7,3228.6,1e-07]
[1736914645047,7.30663769,3228.7,3228.6,1e-07]
[1736914645449,7.93300299,3228.7,3228.6,1e-07]
[1736914648328,8.73060299,3228.7,3228.6,1e-07]
[1736914654292,9.1435197,3228.7,3228.6,1e-07]
[1736914654592,6.0977,3228.2,3228.1,0.005]
[1736914659146,1.51404766,3228.6,3228.1,0.8165]
[1736914659439,3.09733,3228.6,3228.1,0.8165]
[1736914659594,0.6263653,3228.7,3228.1,0.8165]
[1736914659815,3.09742,3228.5,3228.1,0.8165]
[1736914660842,0.6263653,3228.7,3228.1,0.8165]
[1736914660999,6.0977,3228.2,3228.1,0.8165]
[1736914661725,6.0977,3228.2,3228.1,0.005]
[1736914663426,3.0977,3228.2,3228.1,0.005]
[1736914665997,3.70821121,3228.2,3228.1,0.005]
[1736914668094,3.0975,3228.5,3228.2,0.7971]
[1736914668681,3.72670311,3228.4,3228.2,0.7971]
[1736914669100,3.0976,3228.3,3228.2,0.7971]
[1736914671459,0.62916311,3228.4,3228.1,0.005]
[1736914671460,3.72670311,3228.4,3228.1,0.005]
[1736914671664,3.09761,3228.3,3228.1,0.005]
[1736914673588,3.0977,3228.2,3228.1,0.005]
[1736914675075,3.47038631,3228.2,3228.1,0.005]
[1736914677262,0.62916311,3228.4,3228.1,0.8376]
[1736914677761,3.09762,3228.3,3228.1,0.8376]
[1736914678274,0.62916311,3228.4,3228.1,0.8376]
[1736914678657,3.0976,3228.3,3228.1,0.8376]
[1736914680430,3.62916311,3228.4,3228.1,0.8376]
[1736914680431,0.62916311,3228.4,3228.1,0.8376]
[1736914680706,3.72675311,3228.4,3228.1,0.8376]
[1736914680905,3.0976,3228.3,3228.1,0.8376]
[1736914681262,6.92439,3228.8,3228.1,0.8376]
[1736914681467,3.09736,3228.6,3228.1,0.8376]
[1736914681668,3.70976388,3228.6,3228.1,0.8376]
[1736914681884,3.09692,3229.1,3228.2,0.86357647]
[1736914682104,3.0,3229.0,3228.2,0.8326]
[1736914682310,3.09692,3229.1,3228.2,0.8326]
[1736914682608,2.89983693,3229.4,3228.2,0.8326]
[1736914682609,3.72851989,3228.9,3228.2,0.8326]
[1736914682916,3.09717,3228.8,3228.2,0.8326]
[1736914683513,0.37285699,3228.8,3228.2,0.8326]
[1736914683811,3.0977,3228.2,3228.1,0.005]
[1736914684531,3.0977,3228.2,3228.1,0.779]
[1736914685036,3.09752,3228.4,3228.1,0.779]
[1736914685396,3.0977,3228.2,3228.1,0.005]
[1736914686501,0.61075951,3228.4,3228.1,0.779]
[1736914686797,3.09761,3228.3,3228.1,0.779]
[1736914687403,3.09742,3228.5,3228.1,0.779]
[1736914687631,0.63385155,3228.6,3228.1,0.779]
[1736914687905,3.09722,3228.7,3228.1,0.779]
[1736914689216,3.872,3229.0,3228.1,0.779]
[1736914689217,6.872,3229.0,3228.1,0.779]
[1736914689406,0.775,3228.6,3228.1,0.005]
[1736914689602,3.09743,3228.5,3228.1,0.779]
[1736914689829,0.77131634,3228.6,3228.1,0.779]
[1736914690029,3.09751,3228.4,3228.1,0.779]
[1736914690232,3.09681,3229.2,3228.1,0.779]
[1736914690502,3.09711,3228.9,3228.2,0.03097337]
[1736914690729,2.1035739,3229.6,3228.3,0.774]
[1736914690897,3.09655,3229.4,3228.5,0.774]
[1736914691097,3.09657,3229.4,3228.7,0.774]
[1736914691335,3.09657,3229.4,3228.8,0.185]
[1736914691543,3.09668,3229.3,3228.8,0.185]
[1736914692122,3.0,3229.4,3228.9,0.774]
[1736914692354,3.09629,3229.7,3229.0,0.03096807]
[1736914692516,3.09609,3229.9,3229.1,0.774]
[1736914692717,3.0,3229.8,3229.1,0.774]
[1736914692920,3.87067,3230.4,3229.2,0.03096478]
[1736914693164,0.59742439,3230.4,3229.3,0.774]
[1736914693318,1.62281188,3230.5,3229.5,3.09644]
[1736914693520,1.62281188,3230.5,3229.4,2.93079584]
[1736914693521,1.62281188,3230.5,3230.1,5.99570693]
[1736914693720,1.62281188,3230.5,3230.3,0.774]
[1736914693935,0.48076202,3231.0,3230.3,0.774]
[1736914694233,0.48076202,3231.0,3230.4,0.03095365]
[1736914694446,0.48076202,3231.0,3230.5,0.774]
[1736914694650,0.60953468,3231.2,3230.5,0.774]
[1736914694651,3.0,3231.2,3230.6,0.03095163]
[1736914694867,3.09474,3231.3,3230.7,0.774]
[1736914695569,3.0,3231.2,3230.7,0.774]
[1736914695858,3.09474,3231.3,3230.7,0.774]
[1736914695859,0.62896282,3231.4,3230.8,0.03094945]
[1736914696069,0.62896282,3231.4,3230.7,0.774]
[1736914696070,3.72361282,3231.4,3230.7,0.774]
[1736914697066,3.09424,3231.9,3230.8,0.03094879]
[1736914697358,3.09462,3231.5,3230.7,0.80494719]
[1736914697557,3.73034593,3231.5,3230.9,0.03094719]
[1736914697761,0.63572593,3231.5,3230.7,0.774]
[1736914697974,3.09473,3231.3,3230.7,0.774]
[1736914698862,0.309424,3231.8,3230.9,0.8285]
[1736914699062,3.09422,3231.9,3231.1,0.8285]
[1736914699279,3.09395,3232.2,3231.3,0.8285]
[1736914699483,3.09395,3232.2,3231.4,0.03094177]
[1736914699673,3.0,3232.7,3231.5,0.8285]
[1736914699868,3.0937,3232.4,3231.6,0.0309412]
[1736914700084,0.30937,3232.3,3231.6,0.0309412]
[1736914700246,0.30937,3232.3,3231.7,0.8285]
[1736914701289,0.62425185,3232.5,3230.5,3.70136478]
[1736914701290,3.09435,3231.7,3230.7,0.8285]
[1736914701444,3.09414,3232.0,3230.9,0.8285]
[1736914701789,3.09414,3232.0,3231.0,0.85944407]
[1736914702255,3.0,3232.1,3231.0,0.85944407]
[1736914702456,3.09453,3231.6,3231.1,0.185]
[1736914704250,3.09298307,3231.6,3231.1,0.185]
[1736914704904,3.09425,3231.8,3231.1,0.21594564]
[1736914705070,3.09425,3231.8,3231.1,0.185]
[1736914705650,3.09425,3231.8,3231.1,0.21594564]
[1736914705896,3.0,3231.9,3231.2,0.8285]
[1736914706349,1.21807056,3232.0,3231.2,0.8285]
[1736914706560,0.783,3232.3,3231.2,0.85944248]
[1736914706775,3.0,3232.4,3231.2,0.85944248]
[1736914706978,3.0,3232.0,3231.2,0.8285]
[1736914707199,3.09407,3232.0,3231.2,0.85944248]
[1736914709396,3.09407,3232.0,3231.2,0.8285]
[1736914710109,3.09407,3232.0,3231.2,0.8594425]
[1736914711192,3.09383,3232.3,3231.2,3.1257325]
[1736914711363,3.09355,3232.6,3231.5,0.8285]
[1736914711564,3.0,3232.4,3231.7,0.8285]
[1736914711806,3.09377,3232.3,3231.7,0.8285]
[1736914712158,0.783,3232.9,3231.8,0.03093829]
[1736914712468,0.62498643,3232.4,3231.7,0.8285]
[1736914712670,3.09425,3231.8,3231.7,0.8285]
[1736914712979,3.09463,3231.4,3231.1,0.8269]
[1736914713325,3.09482,3231.2,3231.1,0.8269]
[1736914713460,3.90197,3231.5,3230.7,1.0119]
[1736914713661,3.390197,3231.4,3230.7,0.8269]
[1736914713901,3.09511,3230.9,3230.7,0.8269]
[1736914714117,9.38471393,3231.4,3230.6,0.185]
[1736914714291,3.0953,3230.7,3230.6,0.185]
[1736914714492,9.38471393,3231.4,3230.6,0.185]
[1736914714493,3.0,3231.2,3230.6,0.185]
[1736914714663,3.09513,3230.9,3230.6,0.185]
[1736914714984,3.09513,3230.9,3230.5,0.185]
[1736914715160,3.09492,3231.1,3230.5,0.185]
[1736914715367,3.09533,3230.7,3230.5,0.185]
[1736914715781,0.61191386,3230.9,3230.4,0.8269]
[1736914716106,0.61191386,3230.9,3230.5,0.185]
[1736914716107,3.09532,3230.7,3230.5,0.185]
[1736914716806,3.09532,3230.7,3230.4,1.0119]
[1736914717017,3.09549,3230.5,3230.4,1.0119]
[1736914717162,3.09587,3230.1,3230.0,0.8269]
[1736914717369,3.09587,3230.1,3228.6,0.40708552]
[1736914717370,3.0956,3230.4,3229.7,0.185]
[1736914717605,3.09596,3230.1,3229.7,0.185]
[1736914717782,3.09598,3230.0,3229.7,0.185]
[1736914718179,3.09611,3229.9,3229.3,0.03096095]
[1736914718378,5.89983693,3230.5,3229.4,0.185]
[1736914718586,3.09583,3230.2,3229.5,0.85786098]
[1736914718780,3.0,3230.7,3229.5,0.85786098]
[1736914718982,3.09579,3230.2,3229.5,0.8269]
[1736914719376,3.09555,3230.5,3229.6,0.85785875]
[1736914719612,3.0,3230.3,3229.6,0.85785875]
[1736914720396,3.70723693,3230.8,3229.6,0.8269]
[1736914720397,3.0,3230.7,3229.6,0.8269]
[1736914720602,3.70710386,3230.9,3229.8,0.8269]
[1736914720603,0.61191386,3230.9,3229.8,0.8269]
[1736914720770,3.09542,3230.6,3229.8,0.8269]
[1736914721193,3.09542,3230.6,3229.5,3.03095463]
[1736914721194,3.09521,3230.8,3230.0,0.8269]
[1736914721508,3.09521,3230.8,3230.1,0.03095438]
[1736914721810,0.61191386,3230.9,3230.0,0.8269]
[1736914722015,3.09543,3230.6,3230.0,0.8269]
[1736914722199,3.09521,3230.8,3230.0,0.8269]
[1736914722573,6.09502,3231.0,3230.1,0.03095337]
[1736914722912,6.09502,3231.0,3230.2,0.8269]
[1736914722913,0.60540084,3231.0,3230.2,0.8269]
[1736914723112,3.09559,3230.4,3230.3,0.185]
[1736914725208,3.09559,3230.4,3230.2,1.0119]
[1736914726199,3.09542,3230.6,3230.2,1.0119]
[1736914726929,3.09561,3230.4,3230.2,1.0119]
[1736914727217,3.09565,3230.4,3230.2,0.185]
[1736914727426,3.09554,3230.5,3230.2,0.185]
[1736914728125,3.09554,3230.5,3229.9,0.8269]
[1736914728424,3.09554,3230.5,3230.0,0.186]
[1736914729723,3.0,3230.7,3230.0,0.186]
[1736914729724,3.09565,3230.4,3230.0,0.186]
[1736914730218,3.0954,3230.6,3230.0,0.186]
[1736914731425,3.0954,3230.6,3230.0,0.21695681]
[1736914732021,3.09522,3230.8,3230.1,0.8131]
[1736914733088,3.09522,3230.8,3230.2,0.03095431]
[1736914733421,3.09522,3230.8,3230.1,0.8131]
[1736914733625,3.09522,3230.8,3230.2,0.03095432]
[1736914733780,0.62843919,3230.9,3230.2,0.03095432]
[1736914733982,3.09395,3232.2,3230.3,0.8131]
[1736914733983,3.09454,3231.5,3230.3,0.8131]
[1736914734295,3.09454,3231.5,3230.2,0.03095432]